fUST/lending_fUST_20250206
["ID","MTS","AMOUNT","RATE_DAILY","PERIOD"]
[351941773,1738854646280,-500.0,0.00013972,2]
[351941775,1738854646289,-500.0,0.00013972,2]
[351941777,1738854646298,-1349.21,0.00013972,2]
[351941779,1738854646308,-989.76,0.00013972,2]
[351941781,1738854646317,-155.085341,0.00013972,2]
[351941783,1738854646327,-500.0,0.00013972,2]
[351941785,1738854646336,-155.085341,0.00013972,2]
[351941787,1738854646346,-1125.93,0.00013972,2]
[351941789,1738854646355,-438.19380035,0.00013972,2]
[351941791,1738854646365,-500.0,0.00013972,2]
[351941793,1738854646374,-500.0,0.00013972,2]
[351941795,1738854646383,-500.0,0.00013972,2]
[351941797,1738854646392,-500.0,0.00013972,2]
[351941799,1738854646405,-500.0,0.00013972,2]
[351941801,1738854646414,-500.0,0.00013972,2]
[351941803,1738854646424,-151.0,0.00013972,2]
[351941805,1738854646434,-500.0,0.00013972,2]
[351941808,1738854646445,-521.91521285,0.00013972,2]
[351941809,1738854646455,-151.0,0.00013972,2]
[351941811,1738854646464,-500.0,0.00013972,2]
[351941813,1738854646473,-151.0,0.00013972,2]
[351941815,1738854646483,-500.0,0.00013972,2]
[351941817,1738854646492,-151.0,0.00013972,2]
[351941819,1738854646502,-151.0,0.00013972,2]
[351941821,1738854646511,-151.0,0.00013972,2]
[351941823,1738854646521,-500.0,0.00013972,2]
[351941825,1738854646531,-1791.36,0.00013972,2]
[351941827,1738854646540,-717.16,0.00013972,2]
[351941829,1738854646550,-272.162947,0.00013972,2]
[351941831,1738854646560,-1828.03,0.00013972,2]
[351941833,1738854646569,-272.162947,0.00013972,2]
[351941835,1738854646578,-500.0,0.00013972,2]
[351941837,1738854646588,-500.0,0.00013972,2]
[351941839,1738854646597,-500.0,0.00013972,2]
[351941841,1738854646606,-500.0,0.00013972,2]
[351941843,1738854646615,-500.0,0.00013972,2]
[351941845,1738854646625,-500.0,0.00013972,2]
[351941847,1738854646634,-500.0,0.00013972,2]
[351941849,1738854646644,-500.0,0.00013972,2]
[351941851,1738854646655,-715.14659,0.00013972,2]
[351941853,1738854646664,-500.0,0.00013972,2]
[351941855,1738854646674,-808.26,0.00013972,2]
[351941857,1738854646683,-500.0,0.00013972,2]
[351941859,1738854646692,-500.0,0.00013972,2]
[351941860,1738854646702,-715.14659,0.00013972,2]
[351941862,1738854646711,-452.10188829,0.00013972,2]
[351941864,1738854646721,-506.77,0.00013972,2]
[351941866,1738854646730,-205.427974,0.00013972,2]
[351941868,1738854646741,-500.0,0.00013972,2]
[351941871,1738854646750,-361.35299539,0.00013972,2]
[351941872,1738854646760,-500.0,0.00013972,2]
[351941874,1738854646770,-205.427974,0.00013972,2]
[351941876,1738854646779,-155.299083,0.00013972,2]
[351941878,1738854646792,-500.0,0.00013972,2]
[351941880,1738854646802,-151.0,0.00013972,2]
[351941883,1738854646811,-500.0,0.00013972,2]
[351941884,1738854646821,-155.299083,0.00013972,2]
[351941886,1738854646831,-500.0,0.00013972,2]
[351941888,1738854646840,-893.39,0.00013972,2]
[351941890,1738854646850,-1068.84,0.00013972,2]
[351941892,1738854646862,-500.0,0.00013972,2]
[351941894,1738854646871,-1349.54,0.00013972,2]
[351941896,1738854646881,-2018.11,0.00013972,2]
[351941898,1738854646891,-276.79606257,0.00013972,2]
[351941900,1738854646901,-500.0,0.00013972,2]
[351941902,1738854646911,-1000.0,0.00013972,2]
[351941904,1738854646920,-151.0,0.00013972,2]
[351941906,1738854646929,-628.49,0.00013972,2]
[351941909,1738854646939,-500.0,0.00013972,2]
[351941911,1738854646949,-622.85405026,0.00013972,2]
[351941913,1738854646959,-2297.16,0.00013972,2]
[351941915,1738854646968,-899.65,0.00013972,2]
[351941917,1738854646977,-206.959826,0.00013972,2]
[351941919,1738854646986,-999.63,0.00013972,2]
[351941921,1738854646995,-1230.78,0.00013972,2]
[351941923,1738854647004,-500.0,0.00013972,2]
[351941925,1738854647014,-500.0,0.00013972,2]
[351941927,1738854647023,-1633.44,0.00013972,2]
[351941929,1738854647032,-764.41,0.00013972,2]
[351941931,1738854647042,-372.436615,0.00013972,2]
[351941933,1738854647052,-931.37,0.00013972,2]
[351941935,1738854647062,-500.0,0.00013972,2]
[351941937,1738854647071,-372.436615,0.00013972,2]
[351941939,1738854647081,-500.0,0.00013972,2]
[351941941,1738854647090,-1366.33,0.00013972,2]
[351941943,1738854647104,-500.0,0.00013972,2]
[351941945,1738854647114,-1657.2,0.00013972,2]
[351941947,1738854647124,-500.0,0.00013972,2]
[351941949,1738854647133,-500.0,0.00013972,2]
[351941951,1738854647147,-500.0,0.00013972,2]
[351941953,1738854647156,-600.855876,0.00013972,2]
[351941955,1738854647165,-5092.35,0.00013972,2]
[351941957,1738854647177,-600.855876,0.00013972,2]
[351941959,1738854647186,-500.0,0.00013972,2]
[351941961,1738854647195,-3780.87,0.00013972,2]
[351941963,1738854647204,-500.0,0.00013972,2]
[351941965,1738854647214,-500.0,0.00013972,2]
[351941967,1738854647223,-501.11,0.00013972,2]
[351941969,1738854647233,-196.923318,0.00013972,2]
[351941971,1738854647243,-151.0,0.00013972,2]
[351941973,1738854647253,-151.0,0.00013972,2]
[351941975,1738854647262,-500.0,0.00013972,2]
[351941977,1738854647272,-8254.75,0.00013972,2]
[351941979,1738854647282,-380.665654,0.00013972,2]
[351941981,1738854647291,-1338.85,0.00013972,2]
[351941983,1738854647300,-500.0,0.00013972,2]
[351941985,1738854647310,-380.665654,0.00013972,2]
[351941987,1738854647319,-500.0,0.00013972,2]
[351941989,1738854647329,-500.0,0.00013972,2]
[351941991,1738854647339,-500.0,0.00013972,2]
[351941993,1738854647348,-501.65443903,0.00013972,2]
[351941995,1738854647358,-2034.42,0.00013972,2]
[351941997,1738854647367,-500.0,0.00013972,2]
[351941999,1738854647376,-304.28702336,0.00013972,2]
[351942001,1738854647386,-518.744455,0.00013972,2]
[351942003,1738854647396,-500.0,0.00013972,2]
[351942005,1738854647405,-1555.23,0.00013972,2]
[351942007,1738854647414,-500.0,0.00013972,2]
[351942009,1738854647423,-518.744455,0.00013972,2]
[351942011,1738854647433,-16589.37,0.00013972,2]
[351942013,1738854647443,-151.0,0.00013972,2]
[351942015,1738854647453,-740.85,0.00013972,2]
[351942017,1738854647463,-503.32902953,0.00013972,2]
[351942019,1738854647472,-500.0,0.00013972,2]
[351942021,1738854647482,-500.0,0.00013972,2]
[351942023,1738854647491,-151.0,0.00013972,2]
[351942025,1738854647500,-500.0,0.00013972,2]
[351942027,1738854647510,-500.0,0.00013972,2]
[351942029,1738854647520,-504.06265539,0.00013972,2]
[351942031,1738854647529,-1444.07,0.00013972,2]
[351942033,1738854647539,-500.0,0.00013972,2]
[351942035,1738854647549,-500.0,0.00013972,2]
[351942037,1738854647558,-208.65336372,0.00013972,2]
[351942039,1738854647566,-500.0,0.00013972,2]
[351942041,1738854647576,-1574.08,0.00013972,2]
[351942043,1738854647586,-500.0,0.00013972,2]
[351942045,1738854647595,-611.95,0.00013972,2]
[351942047,1738854647605,-500.0,0.00013972,2]
[351942049,1738854647614,-1274.62,0.00013972,2]
[351942051,1738854647623,-151.0,0.00013972,2]
[351942053,1738854647633,-1475.24,0.00013972,2]
[351942055,1738854647643,-500.0,0.00013972,2]
[351942057,1738854647655,-5160.45,0.00013972,2]
[351942059,1738854647665,-151.0,0.00013972,2]
[351942060,1738854647676,-151.0,0.00013972,2]
[351942063,1738854647687,-500.0,0.00013972,2]
[351942065,1738854647698,-573.51,0.00013972,2]
[351942067,1738854647709,-42643.98,0.00013972,2]
[351942068,1738854647719,-500.0,0.00013972,2]
[351942070,1738854647729,-500.0,0.00013972,2]
[351942072,1738854647739,-2709.24,0.00013972,2]
[351942074,1738854647750,-151.0,0.00013972,2]
[351942076,1738854647760,-500.0,0.00013972,2]
[351942078,1738854647770,-151.0,0.00013972,2]
[351942080,1738854647780,-500.0,0.00013972,2]
[351942082,1738854647791,-500.0,0.00013972,2]
[351942084,1738854647800,-500.0,0.00013972,2]
[351942086,1738854647809,-500.0,0.00013972,2]
[351942088,1738854647819,-2451.5,0.00013972,2]
[351942090,1738854647828,-500.0,0.00013972,2]
[351942092,1738854647839,-2836.32,0.00013972,2]
[351942094,1738854647847,-500.0,0.00013972,2]
[351942096,1738854647856,-500.0,0.00013972,2]
[351942098,1738854647865,-154.103974,0.00013972,2]
[351942099,1738854647873,-1628.67,0.00013972,2]
[351942101,1738854647881,-500.0,0.00013972,2]
[351942103,1738854647890,-154.103974,0.00013972,2]
[351942105,1738854647901,-1765.96,0.00013972,2]
[351942107,1738854647911,-1226.52,0.00013972,2]
[351942109,1738854647920,-500.0,0.00013972,2]
[351942110,1738854647929,-326.75827312,0.00013972,2]
[351942111,1738854647937,-151.0,0.00013972,2]
[351942112,1738854647945,-964.09,0.00013972,2]
[351942113,1738854647954,-21108.71,0.00013972,2]
[351942114,1738854647963,-500.0,0.00013972,2]
[351942115,1738854647971,-1649.84,0.00013972,2]
[351942116,1738854647979,-2006.25,0.00013972,2]
[351942118,1738854647987,-500.0,0.00013972,2]
[351942120,1738854647996,-2776.67,0.00013972,2]
[351942122,1738854648004,-500.0,0.00013972,2]
[351942124,1738854648013,-500.0,0.00013972,2]
[351942126,1738854648021,-500.0,0.00013972,2]
[351942128,1738854648031,-565.77,0.00013972,2]
[351942130,1738854648041,-1840.2,0.00013972,2]
[351942132,1738854648050,-875.33,0.00013972,2]
[351942134,1738854648061,-172.632684,0.00013972,2]
[351942136,1738854648071,-1366.04506,0.00013972,2]
[351942138,1738854648082,-3874.25,0.00013972,2]
[351942140,1738854648093,-500.0,0.00013972,2]
[351942142,1738854648105,-500.0,0.00013972,2]
[351942144,1738854648116,-1366.04506,0.00013972,2]
[351942147,1738854648127,-748.25,0.00013972,2]
[351942148,1738854648137,-846.18,0.00013972,2]
[351942151,1738854648149,-425.0,0.00013972,2]
[351942153,1738854648159,-4316.7,0.00013972,2]
[351942154,1738854648170,-1272.632916,0.00013972,2]
[351942157,1738854648181,-425.0,0.00013972,2]
[351942159,1738854648190,-500.0,0.00013972,2]
[351942161,1738854648200,-500.0,0.00013972,2]
[351942163,1738854648210,-1073.95,0.00013972,2]
[351942165,1738854648220,-1272.632916,0.00013972,2]
[351942167,1738854648230,-151.0,0.00013972,2]
[351942169,1738854648240,-504.57467689,0.00013972,2]
[351942171,1738854648250,-2517.82,0.00013972,2]
[351942173,1738854648260,-1059.49,0.00013972,2]
[351942175,1738854648270,-10938.62,0.00013972,2]
[351942176,1738854648279,-500.0,0.00013972,2]
[351942178,1738854648290,-500.0,0.00013972,2]
[351942181,1738854648300,-151.0,0.00013972,2]
[351942182,1738854648311,-624.38,0.00013972,2]
[351942184,1738854648321,-500.0,0.00013972,2]
[351942187,1738854648331,-500.0,0.00013972,2]
[351942188,1738854648341,-1694.57,0.00013972,2]
[351942190,1738854648351,-2197.75,0.00013972,2]
[351942193,1738854648362,-151.0,0.00013972,2]
[351942195,1738854648372,-500.0,0.00013972,2]
[351942197,1738854648383,-500.0,0.00013972,2]
[351942199,1738854648393,-587.49,0.00013972,2]
[351942201,1738854648403,-500.0,0.00013972,2]
[351942203,1738854648414,-500.0,0.00013972,2]
[351942205,1738854648426,-4663.5,0.00013972,2]
[351942207,1738854648436,-509.11,0.00013972,2]
[351942209,1738854648447,-500.0,0.00013972,2]
[351942211,1738854648457,-400.0,0.00013973,2]
[351942213,1738854648467,-151.0,0.00013975,2]
[351942215,1738854648477,-151.0,0.00013975,2]
[351942217,1738854648487,-151.0,0.00013975,2]
[351942219,1738854648498,-151.0,0.00013975,2]
[351942221,1738854648509,-151.0,0.00013975,2]
[351942223,1738854648520,-272.162947,0.00013975,2]
[351942225,1738854648530,-272.162947,0.00013975,2]
[351942227,1738854648541,-946.17560709,0.0001398,2]
[351942229,1738854648550,-1000.0,0.00013982,2]
[351942231,1738854648560,-1000.0,0.00013985,2]
[351942233,1738854648569,-9050.53909296,0.0001399,2]
[351942235,1738854648579,-9050.53909296,0.00013993,2]
[351942237,1738854648590,-9050.53909296,0.00013999,2]
[351942239,1738854648599,-151.0,0.00014,2]
[351942241,1738854648609,-151.0,0.00014,2]
[351942243,1738854648618,-1000.0,0.00014,14]
[351942245,1738854648628,-151.0,0.00014,2]
[351942247,1738854648638,-6161.65484354,0.00014,2]
[351942249,1738854648650,-1266.27975644,0.00014,2]
[351942251,1738854648661,-160.0,0.00014004,3]
[351942253,1738854648672,-1000.0,0.00014022,2]
[351942255,1738854648682,-1000.0,0.0001405,2]
[351942258,1738854648693,-1000.0,0.00014052,2]
[351942260,1738854648703,-166.66666667,0.00014055,2]
[351942262,1738854648713,-3717.569275,0.00014057,2]
[351942264,1738854648726,-859.07481073,0.00014071,2]
[351942266,1738854648736,-1000.0,0.00014089,2]
[351942268,1738854648747,-1000.0,0.00014098,2]
[351942269,1738854648757,-151.0,0.000141,2]
[351942272,1738854648767,-151.0,0.000141,2]
[351942273,1738854648778,-1000.0,0.000141,2]
[351942275,1738854648788,-1000.0,0.000141,2]
[351942277,1738854648798,-2000.0,0.000141,2]
[351942279,1738854648808,-559.997,0.00014103,2]
[351942281,1738854648819,-156.74499702,0.00014103,2]
[351942283,1738854648830,-223.86837158,0.00014108,2]
[351942285,1738854648840,-92913.48226781,0.00014109,5]
[351942287,1738854648850,-171081.91986423,0.00014109,5]
[351942289,1738854648860,-500.0,0.00014109,2]
[351942291,1738854648870,-838.05,0.00014109,2]
[351942293,1738854648880,-500.0,0.00014109,2]
[351942295,1738854648889,-586.54,0.00014109,2]
[351942310,1738854648901,-500.0,0.00014109,2]
[351942312,1738854649047,-500.0,0.00014109,2]
[351942314,1738854649057,-772.67,0.00014109,2]
[351942316,1738854649067,-500.0,0.00014109,2]
[351942318,1738854649078,-500.0,0.00014109,2]
[351942320,1738854649091,-213.62252062,0.00014109,2]
[351942322,1738854649101,-417.679014,0.00014109,2]
[351942324,1738854649111,-417.679014,0.00014109,2]
[351942326,1738854649122,-151.0,0.00014109,2]
[351942328,1738854649133,-1439.609364,0.00014109,2]
[351942330,1738854649143,-1439.609364,0.00014109,2]
[351942332,1738854649154,-585.64,0.00014109,2]
[351942334,1738854649164,-151.0,0.00014109,2]
[351942336,1738854649176,-151.0,0.00014109,2]
[351942338,1738854649186,-500.0,0.00014109,2]
[351942340,1738854649196,-500.0,0.00014109,2]
[351942342,1738854649206,-500.0,0.00014109,2]
[351942344,1738854649216,-500.0,0.00014109,2]
[351942346,1738854649225,-1080.04,0.00014109,2]
[351942348,1738854649235,-1350.69,0.00014109,2]
[351942350,1738854649244,-1389.25,0.00014109,2]
[351942353,1738854649254,-151.0,0.00014109,2]
[351942355,1738854649263,-500.0,0.00014109,2]
[351942357,1738854649273,-500.0,0.00014109,2]
[351942359,1738854649283,-577.72,0.00014109,2]
[351942361,1738854649293,-500.0,0.00014109,2]
[351942363,1738854649303,-500.0,0.00014109,2]
[351942365,1738854649313,-500.0,0.00014109,2]
[351942367,1738854649323,-151.0,0.00014109,2]
[351942369,1738854649332,-500.0,0.00014109,2]
[351942371,1738854649342,-500.0,0.00014109,2]
[351942373,1738854649354,-500.0,0.00014109,2]
[351942375,1738854649363,-228.47242291,0.00014109,2]
[351942377,1738854649374,-500.0,0.00014109,2]
[351942379,1738854649384,-991.25,0.00014109,2]
[351942381,1738854649394,-500.0,0.00014109,2]
[351942383,1738854649404,-500.0,0.00014109,2]
[351942385,1738854649414,-500.0,0.00014109,2]
[351942387,1738854649424,-829.21,0.00014109,2]
[351942390,1738854649434,-500.0,0.00014109,2]
[351942392,1738854649444,-500.0,0.00014109,2]
[351942394,1738854649454,-500.0,0.00014109,2]
[351942396,1738854649464,-500.0,0.00014109,2]
[351942398,1738854649475,-500.0,0.00014109,2]
[351942400,1738854649486,-700.25,0.00014109,2]
[351942402,1738854649496,-613.27,0.00014109,2]
[351942404,1738854649507,-500.0,0.00014109,2]
[351942406,1738854649517,-500.0,0.00014109,2]
[351942408,1738854649527,-151.0,0.00014109,2]
[351942410,1738854649537,-500.0,0.00014109,2]
[351942412,1738854649547,-151.0,0.00014109,2]
[351942414,1738854649557,-500.0,0.00014109,2]
[351942416,1738854649567,-500.0,0.00014109,2]
[351942418,1738854649577,-500.0,0.00014109,2]
[351942420,1738854649588,-1349.21,0.00014109,2]
[351942422,1738854649597,-989.76,0.00014109,2]
[351942424,1738854649607,-155.085341,0.00014109,2]
[351942426,1738854649617,-155.085341,0.00014109,2]
[351942428,1738854649626,-1125.93,0.00014109,2]
[351942430,1738854649636,-500.0,0.00014109,2]
[351942432,1738854649647,-500.0,0.00014109,2]
[351942435,1738854649658,-500.0,0.00014109,2]
[351942437,1738854649668,-500.0,0.00014109,2]
[351942439,1738854649679,-500.0,0.00014109,2]
[351942441,1738854649689,-500.0,0.00014109,2]
[351942443,1738854649699,-151.0,0.00014109,2]
[351942445,1738854649710,-500.0,0.00014109,2]
[351942447,1738854649720,-151.0,0.00014109,2]
[351942449,1738854649731,-500.0,0.00014109,2]
[351942451,1738854649741,-151.0,0.00014109,2]
[351942453,1738854649750,-500.0,0.00014109,2]
[351942455,1738854649761,-151.0,0.00014109,2]
[351942457,1738854649771,-151.0,0.00014109,2]
[351942459,1738854649781,-151.0,0.00014109,2]
[351942461,1738854649791,-500.0,0.00014109,2]
[351942463,1738854649801,-1791.36,0.00014109,2]
[351942465,1738854649811,-717.16,0.00014109,2]
[351942467,1738854649822,-272.162947,0.00014109,2]
[351942469,1738854649832,-1828.03,0.00014109,2]
[351942472,1738854649843,-272.162947,0.00014109,2]
[351942473,1738854649853,-500.0,0.00014109,2]
[351942474,1738854649863,-496.7,0.00014109,2]
[351942475,1738854649873,-500.0,0.00014109,2]
[351942476,1738854649882,-500.0,0.00014109,2]
[351942477,1738854649893,-500.0,0.00014109,2]
[351942478,1738854649904,-301.28744575,0.00014109,2]
[351942479,1738854649914,-359.76153062,0.00014109,2]
[351942480,1738854649924,-715.14659,0.00014109,2]
[351942481,1738854649933,-808.26,0.00014109,2]
[351942482,1738854649943,-500.0,0.00014109,2]
[351942483,1738854649953,-715.14659,0.00014109,2]
[351942484,1738854649962,-205.427974,0.00014109,2]
[351942485,1738854649972,-500.0,0.00014109,2]
[351942486,1738854649982,-500.0,0.00014109,2]
[351942487,1738854649991,-205.427974,0.00014109,2]
[351942488,1738854650001,-155.299083,0.00014109,2]
[351942489,1738854650010,-500.0,0.00014109,2]
[351942490,1738854650020,-151.0,0.00014109,2]
[351942491,1738854650029,-500.0,0.00014109,2]
[351942492,1738854650039,-155.299083,0.00014109,2]
[351942493,1738854650048,-500.0,0.00014109,2]
[351942494,1738854650058,-893.39,0.00014109,2]
[351942495,1738854650067,-1068.84,0.00014109,2]
[351942496,1738854650077,-500.0,0.00014109,2]
[351942497,1738854650087,-1349.54,0.00014109,2]
[351942498,1738854650097,-2018.11,0.00014109,2]
[351942499,1738854650108,-500.0,0.00014109,2]
[351942500,1738854650118,-151.0,0.00014109,2]
[351942501,1738854650127,-628.49,0.00014109,2]
[351942502,1738854650138,-500.0,0.00014109,2]
[351942503,1738854650146,-899.65,0.00014109,2]
[351942504,1738854650159,-2297.16,0.00014109,2]
[351942505,1738854650168,-999.63,0.00014109,2]
[351942506,1738854650179,-1230.78,0.00014109,2]
[351942507,1738854650189,-500.0,0.00014109,2]
[351942508,1738854650199,-500.0,0.00014109,2]
[351942509,1738854650209,-1633.44,0.00014109,2]
[351942510,1738854650219,-764.41,0.00014109,2]
[351942512,1738854650228,-372.436615,0.00014109,2]
[351942514,1738854650237,-931.37,0.00014109,2]
[351942516,1738854650246,-500.0,0.00014109,2]
[351942518,1738854650255,-500.0,0.00014109,2]
[351942520,1738854650265,-372.436615,0.00014109,2]
[351942522,1738854650274,-1366.33,0.00014109,2]
[351942524,1738854650283,-500.0,0.00014109,2]
[351942526,1738854650293,-1657.2,0.00014109,2]
[351942528,1738854650302,-500.0,0.00014109,2]
[351942529,1738854650311,-500.0,0.00014109,2]
[351942531,1738854650319,-600.855876,0.00014109,2]
[351942533,1738854650328,-5092.35,0.00014109,2]
[351942535,1738854650337,-600.855876,0.00014109,2]
[351942537,1738854650346,-3780.87,0.00014109,2]
[351942539,1738854650356,-500.0,0.00014109,2]
[351942541,1738854650365,-500.0,0.00014109,2]
[351942542,1738854650374,-501.11,0.00014109,2]
[351942544,1738854650383,-151.0,0.00014109,2]
[351942546,1738854650392,-151.0,0.00014109,2]
[351942548,1738854650404,-500.0,0.00014109,2]
[351942550,1738854650414,-8254.75,0.00014109,2]
[351942552,1738854650423,-380.665654,0.00014109,2]
[351942554,1738854650432,-1338.85,0.00014109,2]
[351942556,1738854650441,-500.0,0.00014109,2]
[351942558,1738854650450,-380.665654,0.00014109,2]
[351942560,1738854650459,-500.0,0.00014109,2]
[351942562,1738854650468,-500.0,0.00014109,2]
[351942564,1738854650478,-500.0,0.00014109,2]
[351942565,1738854650487,-2034.42,0.00014109,2]
[351942567,1738854650496,-500.0,0.00014109,2]
[351942569,1738854650505,-500.0,0.00014109,2]
[351942571,1738854650514,-518.744455,0.00014109,2]
[351942573,1738854650523,-1555.23,0.00014109,2]
[351942575,1738854650533,-500.0,0.00014109,2]
[351942577,1738854650543,-518.744455,0.00014109,2]
[351942579,1738854650552,-16589.37,0.00014109,2]
[351942581,1738854650561,-151.0,0.00014109,2]
[351942583,1738854650571,-151.0,0.00014109,2]
[351942585,1738854650580,-740.85,0.00014109,2]
[351942587,1738854650590,-500.0,0.00014109,2]
[351942589,1738854650600,-500.0,0.00014109,2]
[351942591,1738854650609,-215.284245,0.00014109,2]
[351942593,1738854650619,-500.0,0.00014109,2]
[351942595,1738854650628,-1444.07,0.00014109,2]
[351942597,1738854650637,-500.0,0.00014109,2]
[351942599,1738854650647,-500.0,0.00014109,2]
[351942601,1738854650658,-500.0,0.00014109,2]
[351942603,1738854650667,-1574.08,0.00014109,2]
[351942605,1738854650677,-507.76093265,0.00014109,2]
[351942607,1738854650687,-611.95,0.00014109,2]
[351942609,1738854650697,-1274.62,0.00014109,2]
[351942611,1738854650706,-151.0,0.00014109,2]
[351942613,1738854650716,-151.0,0.00014109,2]
[351942615,1738854650725,-1475.24,0.00014109,2]
[351942617,1738854650735,-5160.45,0.00014109,2]
[351942619,1738854650745,-151.0,0.00014109,2]
[351942621,1738854650755,-151.0,0.00014109,2]
[351942623,1738854650764,-151.0,0.00014109,2]
[351942625,1738854650774,-151.0,0.00014109,2]
[351942627,1738854650784,-500.0,0.00014109,2]
[351942629,1738854650794,-573.51,0.00014109,2]
[351942631,1738854650803,-42643.98,0.00014109,2]
[351942633,1738854650813,-500.0,0.00014109,2]
[351942635,1738854650823,-500.0,0.00014109,2]
[351942637,1738854650833,-2709.24,0.00014109,2]
[351942639,1738854650843,-151.0,0.00014109,2]
[351942641,1738854650852,-500.0,0.00014109,2]
[351942643,1738854650861,-151.0,0.00014109,2]
[351942645,1738854650871,-151.0,0.00014109,2]
[351942647,1738854650880,-151.341923,0.00014109,2]
[351942649,1738854650889,-500.0,0.00014109,2]
[351942651,1738854650900,-500.0,0.00014109,2]
[351942653,1738854650910,-500.0,0.00014109,2]
[351942655,1738854650919,-2451.5,0.00014109,2]
[351942657,1738854650928,-500.0,0.00014109,2]
[351942658,1738854650938,-2836.32,0.00014109,2]
[351942660,1738854650947,-500.0,0.00014109,2]
[351942662,1738854650956,-474.54710753,0.00014109,2]
[351942664,1738854650966,-154.103974,0.00014109,2]
[351942666,1738854650975,-1628.67,0.00014109,2]
[351942668,1738854650984,-154.103974,0.00014109,2]
[351942670,1738854650994,-591.08176997,0.00014109,2]
[351942672,1738854651003,-154.103974,0.00014109,2]
[351942674,1738854651013,-154.103974,0.00014109,2]
[351942676,1738854651022,-1765.96,0.00014109,2]
[351942678,1738854651031,-1226.52,0.00014109,2]
[351942680,1738854651040,-500.0,0.00014109,2]
[351942682,1738854651050,-151.0,0.00014109,2]
[351942684,1738854651059,-151.0,0.00014109,2]
[351942686,1738854651068,-964.09,0.00014109,2]
[351942688,1738854651077,-21108.71,0.00014109,2]
[351942690,1738854651087,-500.0,0.00014109,2]
[351942692,1738854651098,-1649.84,0.00014109,2]
[351942694,1738854651107,-2006.25,0.00014109,2]
[351942696,1738854651116,-500.0,0.00014109,2]
[351942698,1738854651127,-2776.67,0.00014109,2]
[351942700,1738854651136,-484.42603316,0.00014109,2]
[351942702,1738854651145,-500.0,0.00014109,2]
[351942704,1738854651156,-500.0,0.00014109,2]
[351942706,1738854651165,-1840.2,0.00014109,2]
[351942708,1738854651177,-875.33,0.00014109,2]
[351942710,1738854651187,-1366.04506,0.00014109,2]
[351942712,1738854651196,-1366.04506,0.00014109,2]
[351942714,1738854651205,-3874.25,0.00014109,2]
[351942716,1738854651214,-500.0,0.00014109,2]
[351942718,1738854651223,-1366.04506,0.00014109,2]
[351942719,1738854651232,-500.0,0.00014109,2]
[351942721,1738854651242,-748.25,0.00014109,2]
[351942723,1738854651251,-1366.04506,0.00014109,2]
[351942725,1738854651260,-846.18,0.00014109,2]
[351942727,1738854651270,-425.0,0.00014109,2]
[351942729,1738854651279,-425.0,0.00014109,2]
[351942731,1738854651289,-4316.7,0.00014109,2]
[351942733,1738854651298,-1272.632916,0.00014109,2]
[351942735,1738854651307,-1272.632916,0.00014109,2]
[351942737,1738854651316,-425.0,0.00014109,2]